[Event "3rd Avagyan Memorial 2022"]
[Site "Jermuk"]
[Date "2022.06.22"]
[Round "3.5"]
[White "Tabatabaei, M. Amin"]
[Black "Ter-Sahakyan, Samvel"]
[Result "1/2-1/2"]
[ECO "A20"]
[WhiteElo "2650"]
[BlackElo "2640"]
[Annotator "TA"]
[PlyCount "98"]
[EventDate "2022.06.20"]
[EventType "tourn"]
[EventCountry "ARM"]
[SourceTitle "playchess.com"]
[Source "ChessBase"]
[SourceQuality "1"]
[TimeControl "40/5400+30:1800+30"]

{[%evp 9,98,0,0,0,0,0,14,0,8,8,5,0,24,13,16,24,25,11,26,35,15,9,19,13,25,41,47,16,35,22,36,35,18,21,54,54,54,46,52,43,52,36,35,46,46,43,50,45,47,51,59,58,30,8,8,15,15,0,0,0,0,0,0,0,0,0,0,0,0,0,0,0,0,0,0,0,0,0,0,0,0,0,0,0,0,0,6,0,0,0,6]} 1. c4 {[%emt 0:00:06]} e5 {[%emt 0:00:09]} 2. g3 {[%emt 0:00:07]} c6 {[%emt 0:01:29]} 3. Nf3 {[%emt 0:00:12]} e4 {[%emt 0:00:00]} 4. Nd4 {[%emt 0:00:06][%cal Bf3d4,Bd4c2,Bc2e1,Be1d3,Bd3f4][%mdl 32]} d5 {[%emt 0:00:00]} 5. cxd5 {[%emt 0:00:08]} Qxd5 {[%emt 0:00:00]} 6. Nc2 {[%emt 0:00:09] A20: English Opening: 1...e5.} Nf6 {[%emt 0:00:03]} 7. Nc3 {[%emt 0:00:06]} Qe5 {[%emt 0:00:05] 7...Qe5 is better than 7...Qh5.} 8. Bg2 {[%emt 0:00:08]} Na6 {[%emt 0:05:12]} 9. O-O {[%emt 0:00:15]} (9. d4 {is interesting.} exd3 10. Qxd3 Nb4 11. Nxb4 Bxb4 12. a3) 9... Be7 {[%emt 0:00:04]} 10. Ne1 {[%emt 0:00:09] [#]} O-O $146 {[%emt 0:16:24]} ({Predecessor:} 10... Nb4 11. f3 exf3 12. Nxf3 Qh5 13. d4 Nbd5 14. e4 Nxc3 15. bxc3 Nxe4 16. Re1 f5 {½-½ (44) Giri,A (2772)-Praggnanandhaa,R (2612) Wijk aan Zee 2022}) 11. d4 {[%emt 0:00:17]} exd3 {[%emt 0:03:59]} 12. Nxd3 {[%emt 0:00:16]} Qh5 {[%emt 0:01:56]} 13. e4 {[%emt 0:01:04]} Bg4 {[%emt 0:13:23]} 14. f3 {[%emt 0:00:17]} Be6 {[%emt 0:00:08]} 15. Nf4 {[%emt 0:00:09]} Qc5+ {[%emt 0:05:10]} 16. Rf2 {[%emt 0:00:18]} Qb6 {[%emt 0:04:33]} 17. Na4 {[%emt 0:05:23]} ({Of course not} 17. Nxe6 fxe6 18. Na4 Rad8 $17) 17... Qd8 {[%emt 0:03:16]} 18. Qe2 {[%emt 0:05:45]} Qd4 {[%emt 0:07:51]} 19. Nxe6 {[%emt 0:00:20]} fxe6 {[%emt 0:00:07]} 20. Nc3 {[%emt 0:00:07]} Bc5 {[%emt 0:04:26][%cal Of6g4] [#] Strongly threatening ...Ng4!} 21. Nd1 $1 {[%emt 0:00:10]} Ng4 22. fxg4 {[%emt 0:00:36]} Rxf2 {[%emt 0:01:34]} 23. Nxf2 {[%emt 0:00:06]} Rf8 {[%emt 0:00:03][%cal Rf8f2]} 24. Bf4 {[%emt 0:09:08] [#] aiming for Rd1.} e5 $1 {[%emt 0:00:57]} 25. Rd1 {[%emt 0:01:47]} Qxf2+ {[%emt 0:01:15]} 26. Qxf2 {[%emt 0:00:04]} Bxf2+ {[%emt 0:00:31]} 27. Kxf2 {[%emt 0:00:02][%cal Of2e3]} exf4 $14 {[%emt 0:00:19][%mdl 4096] Endgame KRB-KRN} 28. e5 {[%emt 0:08:09]} fxg3+ {[%emt 0:05:43]} 29. Kxg3 {[%emt 0:00:04]} Re8 {[%emt 0:00:09]} 30. Bf1 {[%emt 0:03:07] Black must now prevent Bc4+.} Rxe5 {[%emt 0:06:25]} 31. Rd7 {[%emt 0:41:14]} b5 {[%emt 0:00:05] Inhibits Bc4+. The position is equal.} 32. Rxa7 {[%emt 0:00:04]} Nb4 {[%emt 0:00:03]} 33. b3 {[%emt 0:01:08]} Re3+ {[%emt 0:05:33]} 34. Kh4 {[%emt 0:00:24]} h6 {[%emt 0:03:46]} 35. g5 {[%emt 0:03:11]} Re4+ {[%emt 0:06:37]} 36. Kh5 {[%emt 0:02:29]} Re5 {[%emt 0:00:03]} 37. h4 {[%emt 0:01:14]} Nd5 {[%emt 0:00:03]} 38. a4 {[%emt 0:03:25]} hxg5 {[%emt 0:03:39]} 39. hxg5 {[%emt 0:00:46]} Re1 {[%emt 0:00:55]} 40. Bh3 {[%emt 0:00:00]} Nf4+ {[%emt 0:00:00]} ({Much less strong is} 40... Rh1 41. Kg4 $14) 41. Kg4 {[%emt 0:09:16]} Nxh3 {[%emt 0:03:23]} 42. Kxh3 $11 {[%emt 0:02:05] Threatens to win with g6. KR-KR} Re3+ {[%emt 0:02:31]} 43. Kg4 {[%emt 0:00:06] Hoping for g6.} Rxb3 {[%emt 0:00:05]} 44. Kh5 {[%emt 0:00:27]} bxa4 {[%emt 0:02:42]} 45. Kg6 {[%emt 0:00:57] Ra8+ would kill now.} Rb8 {[%emt 0:00:39] Against Ra8} 46. Rxg7+ {[%emt 0:00:18]} Kh8 {[%emt 0:00:01]} 47. Ra7 {[%emt 0:00:20]} Kg8 {[%emt 0:00:16]} 48. Rg7+ {[%emt 0:00:27]} Kh8 {[%emt 0:00:04] ( -> ...Rg8)} 49. Ra7 {[%emt 0:00:12]} Kg8 {[%emt 0:00:07] Weighted Error Value: White=0.02 (flawless) /Black=0.03 (flawless)} 1/2-1/2

[Event "3rd Avagyan Memorial 2022"]
[Site "Jermuk"]
[Date "2022.06.23"]
[Round "4.1"]
[White "Niemann, Hans Moke"]
[Black "Ter-Sahakyan, Samvel"]
[Result "0-1"]
[ECO "C42"]
[WhiteElo "2656"]
[BlackElo "2640"]
[Annotator "TA"]
[PlyCount "98"]
[EventDate "2022.06.20"]
[EventType "tourn"]
[EventCountry "ARM"]
[SourceTitle "playchess.com"]
[Source "ChessBase"]
[SourceQuality "1"]
[TimeControl "40/5400+30:1800+30"]

{[%evp 9,98,12,14,12,11,16,17,5,14,2,13,9,15,12,14,18,23,16,28,27,41,47,54,45,45,47,65,52,49,39,31,18,18,1,5,11,12,4,6,-12,-8,-46,-49,-35,-10,-131,-133,-147,-148,-133,-140,-156,-143,-162,-149,-145,-79,-153,-147,-141,-136,-144,-145,-227,-185,-291,-287,-287,-287,-287,-289,-333,-330,-335,-324,-327,-333,-318,-331,-313,-307,-457,-450,-681,-665,-718,-593,-928,-926,-826,-699]} 1. e4 {[%emt 0:00:09]} e5 {[%emt 0:00:14]} 2. Nf3 {[%emt 0:00:22]} Nf6 {[%emt 0:00:05]} 3. Nxe5 {[%emt 0:01:40]} d6 {[%emt 0:00:04]} 4. Nd3 {[%emt 0:00:43]} Nxe4 {[%emt 0:00:07]} 5. Qe2 {[%emt 0:00:04]} Qe7 {[%emt 0:00:41]} 6. Nf4 {[%emt 0:00:10] C42: Petroff Defence: 3 Nxe5 and unusual White 3rd moves.} c6 {[%emt 0:04:16] Against Nd5} 7. f3 {[%emt 0:02:09]} Nf6 {[%emt 0:02:26]} 8. d4 {[%emt 0:00:12] The position is equal.} h5 {[%emt 0:00:57] [#]} 9. Nc3 $146 {[%emt 0:03:05]} ({Predecessor:} 9. g3 Bf5 10. c3 Nbd7 11. Qxe7+ Bxe7 12. Bd3 Bxd3 13. Nxd3 O-O-O 14. Kf2 Rde8 15. Nd2 {0-1 (60) Antolak,J (2306)-Kubicka,A (2235) Chorzow 2021}) 9... Qxe2+ {[%emt 0:02:46]} 10. Bxe2 {[%emt 0:00:41]} d5 {[%emt 0:00:09]} 11. Kf2 {[%emt 0:01:56]} Bd6 {[%emt 0:03:19]} 12. Bd3 {[%emt 0:00:22]} b6 {[%emt 0:09:02]} 13. Re1+ {[%emt 0:01:55]} Kf8 {[%emt 0:00:06]} 14. Nce2 {[%emt 0:02:41]} Ba6 {[%emt 0:04:45]} (14... g5 15. Nh3 $16) 15. h4 {[%emt 0:02:10]} Bxd3 {[%emt 0:14:02]} 16. Nxd3 {[%emt 0:00:29]} Nbd7 {[%emt 0:00:08]} 17. Bf4 {[%emt 0:01:11]} Be7 {[%emt 0:01:37]} 18. Rac1 {[%emt 0:02:31]} Rc8 {[%emt 0:03:18]} 19. c4 {[%emt 0:01:18]} dxc4 {[%emt 0:02:58]} 20. Rxc4 {[%emt 0:00:08]} Nd5 {[%emt 0:00:02]} 21. Bg5 {[%emt 0:04:39]} f6 {[%emt 0:04:14]} 22. Bd2 {[%emt 0:00:32]} Kf7 {[%emt 0:00:55]} 23. Rec1 {[%emt 0:00:07]} c5 {[%emt 0:03:03][%cal Bc6c5,Bc5d4,Bd4d3][%mdl 32]} 24. R4c2 {[%emt 0:09:20][%cal Ob2b4]} Rcd8 {[%emt 0:07:03]} 25. f4 {[%emt 0:00:31]} Rhe8 {[%emt 0:07:48]} 26. Kf3 {[%emt 0:01:01]} cxd4 {[%emt 0:02:12]} 27. b4 {[%emt 0:00:09] [#] Against Nc5} (27. Nxd4 $11 {was the only way to keep the balance.} Nc5 28. Nf2) 27... Bxb4 $1 $17 {[%emt 0:05:32][%mdl 512]} 28. Nxb4 {[%emt 0:06:49]} (28. Nxd4 Ba3) 28... Nxb4 {[%emt 0:00:10][%mdl 64] Remove Defender} (28... Nc5 29. Nc6 Rd7 30. Nexd4 $18) 29. Bxb4 {[%emt 0:00:05] Strongly threatening Rc7.} d3 $1 {[%emt 0:00:20][%csl LRc2,LRe2]} 30. Rc7 {[%emt 0:00:05] aiming for Nd4.} dxe2 {[%emt 0:04:55]} ({Weaker is} 30... Rxe2 31. Rd1 Rb2 32. Rxd3 Rxb4 33. Rdxd7+ Rxd7 34. Rxd7+ Kg6 35. Rxa7 $11) 31. Re1 {[%emt 0:02:24]} a5 {[%emt 0:02:23]} 32. Ba3 {[%emt 0:00:06]} b5 {[%emt 0:04:15]} (32... Kg6 $142 {White must now prevent ...Nb8.} 33. Rxe2 Rxe2 34. Kxe2 Nf8) 33. Ra7 {[%emt 0:00:08]} (33. Rxe2 $142 Rxe2 34. Kxe2) 33... Kg6 {[%emt 0:02:43] [#] Threatens to win with ...Nb6.} ({Stronger than} 33... b4 34. Bc1 $17) 34. Rxe2 {[%emt 0:02:12]} Rxe2 {[%emt 0:00:58]} 35. Kxe2 {[%emt 0:00:08][%mdl 4096] Endgame KRB-KRN} Nb6 {[%emt 0:01:10]} 36. Bc1 {[%emt 0:01:38]} (36. f5+ $17 Kxf5 37. Rxa5) 36... Rc8 $19 {[%emt 0:02:13]} 37. Kd1 {[%emt 0:00:14]} (37. Be3 {was necessary.} Nc4 38. Bd4) 37... Nc4 {[%emt 0:00:50]} 38. Rd7 {[%emt 0:01:07]} Rc5 {[%emt 0:00:47] Prevents Rd5.} 39. a3 {[%emt 0:00:08]} Rc6 {[%emt 0:02:18]} 40. Rb7 {[%emt 0:00:00]} Nd6 {[%emt 0:00:00]} 41. Rb8 {[%emt 0:03:51]} Rc5 {[%emt 0:01:36]} 42. Bd2 {[%emt 0:00:49]} Nf5 {[%emt 0:03:49]} 43. Bxa5 {[%emt 0:01:11]} Ne3+ {[%emt 0:00:22]} ({Don't blunder} 43... Nxh4 $2 44. g3 Rd5+ 45. Ke2 $19) 44. Ke2 {[%emt 0:00:23]} Nxg2 {[%emt 0:00:03]} 45. Bd2 {[%emt 0:01:45]} (45. Bb4 $142 Nxf4+ 46. Kf3) 45... Nxh4 {[%emt 0:00:48] Black is clearly winning.} 46. Rb7 {[%emt 0:01:19]} (46. Bb4 $142 Rf5 47. Bd2) 46... Nf5 {[%emt 0:00:36]} 47. Bb4 {[%emt 0:00:04]} Rd5 {[%emt 0:02:06]} 48. Kf3 {[%emt 0:00:08]} h4 {[%emt 0:00:56] Hoping for ...h3.} 49. Rb8 {[%emt 0:01:04]} Rd3+ {[%emt 0:00:40] Weighted Error Value: White=0.35/Black=0.06 (flawless)} 0-1

[Event "3rd Avagyan Memorial 2022"]
[Site "Jermuk"]
[Date "2022.06.23"]
[Round "4.2"]
[White "Petrosyan, Manuel"]
[Black "Tabatabaei, M. Amin"]
[Result "0-1"]
[ECO "D35"]
[WhiteElo "2638"]
[BlackElo "2650"]
[Annotator "TA"]
[PlyCount "94"]
[EventDate "2022.06.20"]
[EventType "tourn"]
[EventCountry "ARM"]
[SourceTitle "playchess.com"]
[Source "ChessBase"]
[SourceQuality "1"]
[TimeControl "40/5400+30:1800+30"]

{[%evp 13,94,0,4,-10,-14,0,6,-15,-15,-20,-11,-33,-26,-27,18,-6,6,-5,0,0,0,-12,-20,-12,0,0,0,0,8,9,81,-54,-57,-42,-45,-60,-55,-48,-57,-55,-12,-49,-54,-52,-52,-56,-51,-77,-84,-97,-81,-129,-129,-129,-128,-153,-163,-172,-162,-171,-171,-177,-177,-191,-172,-183,-183,-195,-184,-183,-186,-236,-182,-246,-240,-220,-232,-236,-229,-262,-278,-304,-300]} 1. d4 {[%emt 0:01:14]} Nf6 {[%emt 0:00:23]} 2. c4 {[%emt 0:00:18]} e6 {[%emt 0:00:06]} 3. Nf3 {[%emt 0:00:14]} d5 {[%emt 0:00:06]} 4. Nc3 {[%emt 0:00:34]} Nbd7 {[%emt 0:00:20]} 5. cxd5 {[%emt 0:04:03]} exd5 {[%emt 0:00:36]} 6. Bf4 {[%emt 0:00:07]} c6 {[%emt 0:01:19]} 7. Qc2 {[%emt 0:05:26]} Nh5 {[%emt 0:00:53]} 8. Bd2 {[%emt 0:03:35] 8.Bd2 is better than 8.Bg5. D35: Queen's Gambit Declined: Exchange Variation.} Be7 {[%emt 0:18:08]} 9. g4 {[%emt 0:03:05]} Nhf6 {[%emt 0:00:15]} 10. g5 {[%emt 0:00:06] The position is equal.} Nh5 {[%emt 0:00:16]} 11. h4 {[%emt 0:00:16]} g6 {[%emt 0:02:45]} 12. e3 {[%emt 0:08:37]} Nb6 {[%emt 0:00:56]} 13. Bd3 {[%emt 0:04:39] [#]} Nc4 $146 {[%emt 0:00:36]} ({Predecessor:} 13... Ng7 14. Ne5 Nd7 15. O-O-O Nxe5 16. dxe5 Bg4 17. Rdg1 Qd7 18. f4 Bf5 19. Ne2 c5 {½-½ (36) Sokolov,I (2611)-Jussupow,A (2610) Germany 2000}) 14. Ne5 {[%emt 0:03:25]} Nxd2 {[%emt 0:17:25]} 15. Qxd2 {[%emt 0:05:21]} Qa5 {[%emt 0:00:14]} 16. O-O-O {[%emt 0:09:09]} Be6 {[%emt 0:00:19]} 17. Kb1 {[%emt 0:00:27]} O-O-O {[%emt 0:09:40]} 18. f4 {[%emt 0:02:36]} Ng3 {[%emt 0:04:28]} 19. Rhg1 {[%emt 0:03:55]} Nf5 {[%emt 0:00:02]} 20. h5 {[%emt 0:00:13]} Kb8 {[%emt 0:01:44]} 21. Ka1 {[%emt 0:02:28]} Nd6 {[%emt 0:03:42]} (21... Rhf8 $11) 22. Ne4 {[%emt 0:07:17]} Qxd2 $15 {[%emt 0:00:12]} 23. Nxd2 {[%emt 0:00:05] Pair of Knights!} gxh5 {[%emt 0:00:25]} 24. Rh1 {[%emt 0:20:44]} h6 {[%emt 0:00:47]} 25. g6 {[%emt 0:01:23]} f6 {[%emt 0:00:39]} 26. Rxh5 {[%emt 0:01:09][%cal Od1g1]} Ne8 {[%emt 0:05:57] aiming for ...Ng7.} ({Resist} 26... fxe5 27. Rxe5 Bf6 28. Rxe6 $16) 27. Nef3 {[%emt 0:01:48]} Bg4 $36 {[%emt 0:00:42][%mdl 2048] Black has some pressure.} 28. Rh2 {[%emt 0:03:17]} Ng7 {[%emt 0:00:53]} 29. Rg1 {[%emt 0:06:26]} h5 {[%emt 0:00:20]} 30. Nh4 {[%emt 0:00:11]} Rde8 {[%emt 0:02:01] White is now going downhill.} 31. Kb1 {[%emt 0:00:01]} Bd8 {[%emt 0:03:47]} 32. Nf1 {[%emt 0:01:03] [#]} (32. Re1 $142) 32... f5 $1 $17 {[%emt 0:01:44]} 33. Kc2 {[%emt 0:00:17]} Rh6 {[%emt 0:00:42][%cal Bh8h6,Bh6g6,Bg6e6][%mdl 32]} 34. a3 {[%emt 0:02:29]} Bxh4 {[%emt 0:01:29]} 35. Rxh4 {[%emt 0:00:02]} Rxg6 {[%emt 0:00:08][%cal Og4d1] And now ...Bd1+! would win.} 36. Kd2 {[%emt 0:00:01] Inhibits Bd1.} Rge6 {[%emt 0:00:11]} 37. b4 {[%emt 0:02:16]} R8e7 {[%emt 0:00:18]} 38. Rh2 {[%emt 0:00:41]} Kc7 {[%emt 0:01:09]} 39. Be2 {[%emt 0:00:27]} Kb6 {[%emt 0:00:23]} 40. Bd3 {[%emt 0:00:00]} a5 {[%emt 0:00:00]} 41. Kc3 {[%emt 0:02:00]} Ne8 {[%emt 0:04:03]} 42. Rgg2 {[%emt 0:00:09]} (42. a4 $142) 42... Nd6 {[%emt 0:03:37]} 43. Rb2 {[%emt 0:01:49]} (43. a4 $142) 43... Rxe3 $19 {[%emt 0:06:47]} 44. bxa5+ {[%emt 0:04:19]} Kxa5 {[%emt 0:00:25] Dancing on a razor blade.} 45. Nxe3 {[%emt 0:00:07]} Rxe3 {[%emt 0:00:04]} 46. a4 {[%emt 0:04:46] [#]} Rf3 $1 {[%emt 0:01:24]} 47. Kd2 {[%emt 0:01:23]} Rxf4 {[%emt 0:01:09] Weighted Error Value: White=0.17 (very precise) /Black=0.09 (flawless)} 0-1

[Event "3rd Avagyan Memorial 2022"]
[Site "Jermuk"]
[Date "2022.06.23"]
[Round "4.3"]
[White "Martirosyan, Haik M."]
[Black "Nguyen, Thai Dai Van"]
[Result "1/2-1/2"]
[ECO "D41"]
[WhiteElo "2652"]
[BlackElo "2612"]
[Annotator "TA"]
[PlyCount "48"]
[EventDate "2022.06.20"]
[EventType "tourn"]
[EventCountry "ARM"]
[SourceTitle "playchess.com"]
[Source "ChessBase"]
[SourceQuality "1"]
[TimeControl "40/5400+30:1800+30"]

{[%evp 11,48,36,23,27,28,-6,25,25,40,29,25,47,23,0,0,-9,4,5,6,22,17,16,17,13,15,4,4,4,4,4,8,7,9,4,4,4,3,4,8]} 1. d4 {[%emt 0:00:03]} Nf6 {[%emt 0:03:48]} 2. c4 {[%emt 0:00:09]} e6 {[%emt 0:00:12]} 3. Nf3 {[%emt 0:00:05]} d5 {[%emt 0:00:10]} 4. Nc3 {[%emt 0:00:10]} c5 {[%emt 0:00:07]} 5. cxd5 {[%emt 0:00:33]} cxd4 {[%emt 0:00:09]} 6. Qxd4 {[%emt 0:00:44]} exd5 {[%emt 0:00:09]} 7. e4 {[%emt 0:01:16] D41: Queen's Gambit Declined: Semi-Tarrasch with 5 cxd5.} dxe4 {[%emt 0:00:14]} 8. Qxd8+ {[%emt 0:00:08]} Kxd8 {[%emt 0:00:04]} 9. Ng5 {[%emt 0:00:09][%csl LRe4,LRf7] White has an edge.} Be6 {[%emt 0:00:05]} 10. Nxe6+ {[%emt 0:00:31]} fxe6 {[%emt 0:00:01]} 11. Bg5 {[%emt 0:00:23]} Ke8 {[%emt 0:00:56] 11...Nc6 deserves study.} 12. Bc4 {[%emt 0:02:25]} Kf7 $1 {[%emt 0:00:53] The position is equal.} 13. O-O {[%emt 0:09:01] [#]} Bb4 $146 {[%emt 0:02:32]} ({Predecessor:} 13... Nbd7 14. Nb5 Rc8 15. Rfc1 Bc5 16. b4 a6 17. bxc5 axb5 18. Bxb5 Nxc5 19. Rc4 Nd3 20. Bxf6 Rxc4 21. Bxg7 Kxg7 22. Bxc4 {½-½ (35) Navara,D (2718)-Grachev,B (2673) Bol 2014}) 14. Bxf6 {[%emt 0:04:17]} gxf6 {[%emt 0:00:12]} 15. Nxe4 {[%emt 0:00:26]} Nc6 {[%emt 0:00:30]} 16. f4 {[%emt 0:04:52]} Na5 {[%emt 0:04:07]} 17. Be2 {[%emt 0:12:01]} f5 {[%emt 0:04:13]} 18. Ng5+ {[%emt 0:04:39]} Kf6 {[%emt 0:00:02]} 19. Rfd1 {[%emt 0:06:45]} h6 {[%emt 0:00:37]} 20. Nf3 {[%emt 0:00:19]} Rhd8 {[%emt 0:00:16] Inhibits Rd7.} 21. Kf1 {[%emt 0:03:01]} Rac8 {[%emt 0:00:44]} 22. Rxd8 {[%emt 0:01:49]} Rxd8 {[%emt 0:00:12]} 23. Rc1 {[%emt 0:00:22]} Nc6 {[%emt 0:00:46]} 24. g3 {[%emt 0:02:30]} Bd2 {[%emt 0:02:25] Weighted Error Value: White=0.03 (flawless) /Black=0.01 (flawless)} 1/2-1/2

[Event "3rd Avagyan Memorial 2022"]
[Site "Jermuk"]
[Date "2022.06.23"]
[Round "4.4"]
[White "Sargsyan, Shant"]
[Black "Donchenko, Alexander"]
[Result "1-0"]
[ECO "B13"]
[WhiteElo "2641"]
[BlackElo "2599"]
[Annotator "TA"]
[PlyCount "79"]
[EventDate "2022.06.20"]
[EventType "tourn"]
[EventCountry "ARM"]
[SourceTitle "playchess.com"]
[Source "ChessBase"]
[SourceQuality "1"]
[TimeControl "40/5400+30:1800+30"]

{[%evp 13,79,20,22,0,8,7,10,0,0,15,7,16,21,19,5,0,39,16,30,39,45,37,57,52,75,37,43,32,34,14,39,8,22,5,28,0,0,4,17,17,51,16,55,62,46,55,52,56,68,60,72,71,84,93,75,92,87,83,378,402,401,397,389,393,387,379,370,356]} 1. e4 {[%emt 2:21:15]} c6 {[%emt 0:00:40]} 2. d4 {[%emt 0:00:18]} d5 {[%emt 0:00:06]} 3. exd5 {[%emt 0:00:17]} cxd5 {[%emt 0:00:08]} 4. Bd3 {[%emt 0:00:05]} Nf6 {[%emt 0:01:21]} 5. h3 {[%emt 0:00:17]} Nc6 {[%emt 0:01:46]} 6. c3 {[%emt 0:00:14]} e5 {[%emt 0:01:59]} 7. dxe5 {[%emt 0:00:18]} Nxe5 {[%emt 0:00:07]} 8. Qe2 {[%emt 0:00:07] B13: Caro-Kann: Exchange Variation and Panov-Botvinnik Attack.} Ne4 {[%emt 0:07:34] ...Bc5 is the strong threat.} 9. Bb5+ {[%emt 0:00:34]} Bd7 {[%emt 0:08:10] [#] Strongly threatening ...Bc5.} 10. Nf3 {[%emt 0:00:10] The position is equal.} Bxb5 {[%emt 0:02:15]} 11. Qxb5+ {[%emt 0:00:07] [#]} Qd7 $146 {[%emt 0:00:13]} ({Predecessor:} 11... Nc6 12. Qxb7 Rc8 13. O-O Bc5 14. Qb5 O-O 15. Nbd2 Bb6 16. Nxe4 dxe4 17. Ng5 Qf6 18. Nxe4 {1-0 (34) Chigaev,M (2599)-Damjanovic,V (2031) Porto Carras 2018}) 12. Qxd7+ {[%emt 0:00:11]} Nxd7 {[%emt 0:00:06]} 13. O-O {[%emt 0:00:12]} Bc5 {[%emt 0:04:03]} 14. Bf4 {[%emt 0:00:19]} O-O {[%emt 0:04:21]} 15. Nbd2 {[%emt 0:00:09]} Ndf6 {[%emt 0:06:46]} 16. Nb3 {[%emt 0:03:45]} Bd6 {[%emt 0:04:38]} 17. Be3 {[%emt 0:03:06]} a6 {[%emt 0:03:05]} 18. Rad1 {[%emt 0:03:19]} Rac8 {[%emt 0:01:27]} 19. Rd3 {[%emt 0:04:06]} Rfe8 {[%emt 0:03:37]} 20. g4 {[%emt 0:06:11]} h6 {[%emt 0:01:23]} 21. Rfd1 {[%emt 0:05:10]} (21. Nh4 {is interesting.} a5 22. Nf5 a4 23. Nbd4) 21... Bf8 {[%emt 0:03:48][%cal Oa6a5]} 22. Kf1 {[%emt 0:13:13]} Nd6 {[%emt 0:02:38]} 23. Nbd4 {[%emt 0:00:55]} b5 {[%emt 0:05:57]} 24. Nf5 {[%emt 0:07:09]} Nxf5 {[%emt 0:03:38]} 25. gxf5 {[%emt 0:00:01]} Bc5 {[%emt 0:00:09]} 26. Bf4 {[%emt 0:03:27][%cal Be3f4,Bf4g3,Bg3h4][%mdl 32]} Bf8 {[%emt 0:08:06]} 27. Bg3 {[%emt 0:04:23]} (27. Be5 $5 {[%cal Re5f6]}) 27... Bc5 {[%emt 0:08:47]} 28. Bh4 {[%emt 0:08:45]} Nh5 {[%emt 0:00:43][%cal Bf6h5,Bh5f4,Bf4h3][%mdl 32]} 29. Rxd5 {[%emt 0:00:10]} Nf4 {[%emt 0:00:38][%csl LRd5,LRh3]} 30. Rd7 {[%emt 0:00:06]} Nxh3 {[%emt 0:01:45]} 31. Rb7 {[%emt 0:00:43]} Rb8 {[%emt 0:01:46]} 32. Rc7 {[%emt 0:07:32]} Rec8 {[%emt 0:01:23]} 33. Rdd7 {[%emt 0:02:00] White is more active.} Rxc7 {[%emt 0:00:09]} 34. Rxc7 {[%emt 0:00:01]} Bb6 {[%emt 0:00:09]} 35. Rc6 {[%emt 0:00:12]} f6 $2 {[%emt 0:01:41][%mdl 8192] Prevents Ne5. A mistake that costs the game.} (35... Rb7 $16 {keeps fighting.}) 36. Bg3 $18 {[%emt 0:03:24] White is winning.} Rb7 {[%emt 0:00:02] [#]} 37. Nh4 $1 {[%emt 0:02:41]} Kf7 {[%emt 0:08:36]} 38. Ng6 {[%emt 0:02:17] White threatens Rc8 and mate.} Ke8 {[%emt 0:00:32]} 39. f4 {[%emt 0:00:58] Inhibits Ng5.} b4 {[%emt 0:05:07]} 40. cxb4 {[%emt 0:04:09] Weighted Error Value: White=0.07 (flawless) /Black=0.26 (precise)} 1-0

[Event "3rd Avagyan Memorial 2022"]
[Site "Jermuk"]
[Date "2022.06.23"]
[Round "4.5"]
[White "Gharibyan, Mamikon"]
[Black "Nihal Sarin"]
[Result "1/2-1/2"]
[ECO "E15"]
[WhiteElo "2487"]
[BlackElo "2646"]
[Annotator "TA"]
[PlyCount "59"]
[EventDate "2022.06.20"]
[EventType "tourn"]
[EventCountry "ARM"]
[SourceTitle "playchess.com"]
[Source "ChessBase"]
[SourceQuality "1"]
[TimeControl "40/5400+30:1800+30"]

{[%evp 15,59,27,31,19,34,32,33,36,42,40,46,38,35,39,39,34,40,35,30,41,28,42,39,28,38,34,47,14,22,32,42,26,44,60,63,56,52,26,91,0,12,14,14,11,16,16]} 1. d4 {[%emt 0:00:09]} Nf6 {[%emt 0:02:29]} 2. c4 {[%emt 0:00:14]} e6 {[%emt 0:00:05]} 3. Nf3 {[%emt 0:00:05]} b6 {[%emt 0:00:04]} 4. g3 {[%emt 0:00:14]} Bb4+ {[%emt 0:00:33]} 5. Bd2 {[%emt 0:00:28]} Bxd2+ {[%emt 0:00:08]} 6. Qxd2 {[%emt 0:00:15]} Ba6 {[%emt 0:00:06]} 7. b3 {[%emt 0:00:18]} c6 {[%emt 0:00:16]} 8. Bg2 {[%emt 0:00:24]} d5 {[%emt 0:00:07]} 9. O-O {[%emt 0:00:32] E15: Queen's Indian: 4 g3 sidelines, 4 g3 Ba6 and 4 g3 Bb7 early deviations.} Nbd7 {[%emt 0:01:48]} 10. Rc1 {[%emt 0:02:33]} O-O {[%emt 0:00:53]} 11. a4 {[%emt 0:02:10][%cal Ba2a4,Ba4a5,Ba5a6][%mdl 32] White is slightly better.} Qe7 {[%emt 0:00:23]} 12. a5 {[%emt 0:09:10]} Rfd8 {[%emt 0:24:39] [#]} 13. Qe1 $146 {[%emt 0:13:41]} ({Predecessor:} 13. Qb2 c5 14. Nbd2 Bb7 15. cxd5 Bxd5 16. Nc4 h6 17. axb6 axb6 18. Rxa8 Rxa8 19. Nfe5 Bxg2 20. Kxg2 {½-½ (34) Gelfand,B (2738)-Grischuk,A (2763) Astana 2012}) 13... c5 {[%emt 0:14:16]} 14. Nc3 {[%emt 0:13:11]} Bb7 {[%emt 0:14:51]} 15. a6 {[%emt 0:07:59]} Bc6 {[%emt 0:00:06]} 16. cxd5 {[%emt 0:00:37]} exd5 {[%emt 0:04:58]} 17. b4 {[%emt 0:02:42]} Rac8 {[%emt 0:07:48]} 18. bxc5 {[%emt 0:01:38]} bxc5 {[%emt 0:00:05]} 19. dxc5 {[%emt 0:00:10]} Nxc5 {[%emt 0:07:47] [#] Threatens to win with ...d4.} 20. Nd4 {[%emt 0:00:30]} Be8 {[%emt 0:00:51]} 21. Ncb5 {[%emt 0:14:42]} Bxb5 {[%emt 0:00:57]} 22. Nxb5 {[%emt 0:02:17]} Qd7 {[%emt 0:00:04]} 23. Nd4 {[%emt 0:01:02]} Rc7 {[%emt 0:00:20]} 24. Qa5 {[%emt 0:08:40]} Rdc8 {[%emt 0:00:24]} 25. Rab1 {[%emt 0:00:24]} g6 {[%emt 0:02:20]} 26. h4 {[%emt 0:02:29]} h5 {[%emt 0:03:12]} (26... Nxa6 $11 27. Rxc7 Nxc7) 27. Qa1 {[%emt 0:01:48] White is more active.} (27. Rc2 $16) 27... Nxa6 {[%emt 0:09:05][%cal Bc5a6,Ba6c7,Bc7e6][%mdl 32] The position is equal.} 28. Rxc7 {[%emt 0:00:37]} Nxc7 {[%emt 0:00:02]} 29. Qxa7 {[%emt 0:01:59]} Ne6 {[%emt 0:01:35]} 30. Qxd7 {[%emt 0:09:22] Weighted Error Value: White=0.08 (flawless) /Black=0.11 (very precise)} 1/2-1/2